Cogmind - Beta 15 @@@ ROGUE MODE // 2025.05.14 @ 14:56:05 Player: Cholfo Result: Destroyed by B-75 Beast with Heavy Machine Gun Performance ------------- Evolutions (5) 2500 Regions Visited (9) 1800 Robots Destroyed (86) 430 Value Destroyed (2941) 2941 Prototype IDs (18) 360 Alien Tech Used (0) 0 Bonus (185) 185 TOTAL SCORE: 8216 Bonus ------- High Alert Combat Kills 57 Follower Combat Kills 128 Cogmind --------- Core Integrity 0/1000 Matter 297/300 Energy 68/100 System Corruption 0% Temperature Cool (12) Movement Core (50) Location -5/Upper Caves Parts ------- > --- POWER (2+1) ------ (None) > --- PROPULSION (5+1) - (None) > --- UTILITY (7+1) ---- Signal Interpreter Weapon Cycler V3-11A's Pendant > --- WEAPON (3+1) ----- (None) > --- INVENTORY (5) ---- Heat Sink Large Storage Unit Heavy Laser Wave Gun Long-range Proton Cannon Peak State ------------ > --- POWER ------------ Improved Deuterium Engine Neutrino Core > --- PROPULSION ------- Improved Treads Medium Treads Improved Titanium Leg Armored Wheel Xenon Bombardment Thruster > --- UTILITY ---------- High-capacity Storage Unit Signal Interpreter Seismic Detector Improved Kinecellerator Weapon Cycler Transmission Jammer Hardlight Generator > --- WEAPON ----------- Long-range Proton Cannon Phase Cannon KE Penetrator > --- INVENTORY -------- Micro Nuclear Core Improved VTOL Module Heat Sink Large Storage Unit Large Matter Pod Core Analyzer Hardened Medium Armor Plating Hardened Medium Armor Plating Scrap Shield Remote Force Field Advanced System Restoration Module V3-11A's Pendant Rainbow Chip Wave Gun Phase Cannon Improved Grenade Launcher Improved Grenade Launcher Heavy Pick [Rating: 70] Favorites ----------- Power Light Nuclear Core Engine Improved Ion Engine Power Core Light Nuclear Core Propulsion Light Treads Treads Light Treads Leg Improved Titanium Leg Wheel Armored Wheel Flight Unit Xenon Bombardment Thruster Utility Seismic Detector Device Seismic Detector Storage High-capacity Storage Unit Processor Signal Interpreter Protection Makeshift Light Armor Plating Weapon EM Shotgun Energy Gun EM Shotgun Energy Cannon Phase Cannon Ballistic Gun Battle Rifle Ballistic Cannon Battle Cannon Launcher Improved Grenade Launcher Impact Weapon Maul Piercing Weapon Heavy Pick Build | -11 -10 -10 -8 -7 -7 -7 -6 -5 -5 ------- Run | Yrd Mat Sub Mat Fac Was Fac Fac Fac Upp Slots Evolved 10 | . . . 4 2 . . 2 2 . Power 1 | . . . . 1 . . . . . Propulsion 3 | . . . 1 1 . . . 1 . Utility 5 | . . . 2 . . . 2 1 . Weapon 1 | . . . 1 . . . . . . Parts Attached 87 | 7 9 13 15 3 . 11 3 8 18 Power 13 | 1 1 1 3 1 . 2 1 1 2 Engine 5 | 1 . 1 1 1 . 1 . . . Core 8 | . 1 . 2 . . 1 1 1 2 Reactor . | . . . . . . . . . . Propulsion 19 | 2 1 2 6 . . 3 . 2 3 Treads 12 | 2 1 2 5 . . 1 . 1 . Leg 2 | . . . . . . . . 1 1 Wheel 3 | . . . 1 . . . . . 2 Hover . | . . . . . . . . . . Flight 2 | . . . . . . 2 . . . Utility 25 | 2 5 1 2 2 . 1 2 1 9 Device 14 | 1 2 1 1 2 . . 2 1 4 Storage 3 | 1 2 . . . . . . . . Processor 4 | . 1 . . . . 1 . . 2 Hackware . | . . . . . . . . . . Protection 4 | . . . 1 . . . . . 3 Artifact . | . . . . . . . . . . Weapon 30 | 2 2 9 4 . . 5 . 4 4 Energy Gun 11 | 2 2 3 . . . 2 . 1 1 Energy Cannon 4 | . . . . . . . . 2 2 Ballistic Gun 7 | . . 2 4 . . . . . 1 Ballistic Cannon 2 | . . 2 . . . . . . . Launcher 3 | . . 1 . . . 2 . . . Special Weapon . | . . . . . . . . . . Impact Weapon 2 | . . 1 . . . 1 . . . Slashing Weapon . | . . . . . . . . . . Piercing Weapon 1 | . . . . . . . . 1 . Special Melee Weapon . | . . . . . . . . . . Unidentified Prototypes 6 | . . 1 2 . . 2 . 1 . Corrupted Parts 1 | . . . 1 . . . . . . System Corruption 1 | . . . 1 . . . . . . Parts Lost 45 | . 1 4 4 . 5 . . . 31 Power 8 | . . 1 1 . 1 . . . 5 Propulsion 13 | . . 1 1 . 2 . . . 9 Utility 14 | . 1 . 1 . 1 . . . 11 Weapon 10 | . . 2 1 . 1 . . . 6 Highest Loss Streak 12 | . 1 3 2 . 5 . . . 12 To Critical Strikes 1 | . . . . . 1 . . . . Average Backups 12 | 2 8 12 15 12 13 10 15 17 11 Power . | . 1 . 1 1 1 . . 1 . Propulsion 1 | 1 3 2 2 . . . 1 . . Utility 6 | . 1 6 6 7 8 7 10 10 6 Weapon 3 | . 3 3 3 3 3 1 3 4 3 Tool/Special . | . . . . . . . . . . Unused Backups 18 | . 4 3 6 . . . . 3 2 Power 2 | . 1 . 1 . . . . . . Propulsion 4 | . 2 . 1 . . . . 1 . Utility 4 | . . 1 1 . . . . 1 1 Weapon 7 | . 1 2 3 . . . . . 1 Tool/Special 1 | . . . . . . . . 1 . Average Slot Usage (%) 91 | . 97 99 98 98 84 81 99 99 74 Engine 5 | . 1 13 2 6 5 3 6 5 2 Core 5 | . 12 . 6 7 5 7 6 5 5 Treads 19 | . 26 28 26 23 18 5 6 8 5 Wheel 1 | . . . . 7 7 7 6 5 3 Flight 1 | . . . . . . 4 13 7 3 Device 16 | . 12 14 17 15 13 14 25 28 20 Storage 9 | . 14 14 9 7 7 7 6 5 2 Processor 3 | . . . . . . 6 6 5 8 Protection 1 | . . . 8 7 5 . . . 1 Energy Gun 11 | . 27 20 . . . 7 13 6 . Energy Cannon 1 | . . . . . . . . 8 6 Ballistic Gun 4 | . . 3 13 23 18 . . . 2 Ballistic Cannon 2 | . . 2 12 . . . . . . Peak Build Rating 70 | 7 12 15 34 39 38 43 50 68 70 Average Rating 29 | 4 10 13 27 38 31 30 49 63 57 On Entrance 27 | . 7 12 15 34 38 8 43 50 68 Naked Turns . | . . . . . . . . . . Heaviest Build 99 | 15 32 34 67 75 71 70 73 94 99 Greatest Support 66 | 40 40 40 66 12 12 12 12 12 51 Greatest Overweight (x) 10 | . 1 . 5 6 5 5 6 7 10 Average Overweight (x) 1 | . . . . 5 4 4 5 6 6 Largest Inventory Capacity 20 | 8 20 15 20 20 20 20 20 20 20 Average Capacity 15 | 7 12 15 19 20 20 20 20 20 13 Most Carried 20 | 4 15 15 20 14 14 18 17 20 20 Average Carried 12 | 2 8 13 16 13 14 11 16 18 11 Final Capacity 20 | 8 15 15 20 20 20 20 20 20 5 Final Carried 20 | 4 15 15 15 14 14 18 17 20 5 Class Distribution -------------------- 69% | Mutant 12% | Gunner 9% | Tank 7% | Derelict-Tank Dominant Class ---------------- Mutant | -10/Materials Mutant | -10/Subcaves Derelict-Tank | -8/Materials Tank | -7/Factory Tank | -7/Waste Mutant | -7/Factory Mutant | -6/Factory Gunner | -5/Factory Mutant | -5/Upper Caves Resources | -11 -10 -10 -8 -7 -7 -7 -6 -5 -5 ----------- Run | Yrd Mat Sub Mat Fac Was Fac Fac Fac Upp Matter Collected 2853 | 270 275 245 1100 . . 317 . 284 362 Remotely 30 | . . . . . . . . . 30 Salvage Created 3202 | 106 401 225 1241 . . 167 . 88 974 Parts 165 | 3 25 12 76 . . 2 . 5 42 Haulers Intercepted 4 | . . . 4 . . . . . . Recyclers Shooed . | . . . . . . . . . . Parts Field Recycled . | . . . . . . . . . . Retrieved Matter . | . . . . . . . . . . Parts Self-Destructed 41 | . . 4 . . . . . . 37 Prevented 1 | . . . . . . . . . 1 Kills | -11 -10 -10 -8 -7 -7 -7 -6 -5 -5 ------- Run | Yrd Mat Sub Mat Fac Was Fac Fac Fac Upp Combat Hostiles Destroyed 69 | . 8 7 26 . . 5 . 1 22 Melee 8 | . . . . . . 1 . . 7 Guns 33 | . 8 4 13 . . . . . 8 Cannons 19 | . . . 13 . . . . 1 5 AOE 6 | . . 3 . . . 1 . . 2 Classes Destroyed 14 | 2 3 2 5 . . 1 . . 1 Worker 1 | . . . 1 . . . . . . Builder 2 | . 1 . 1 . . . . . . Tunneler 1 | 1 . . . . . . . . . Hauler 4 | . . . 4 . . . . . . Recycler 1 | 1 . . . . . . . . . Minesweeper 1 | . . . . . . . . . 1 Operator 2 | . . . 1 . . 1 . . . Watcher 5 | . 3 . 2 . . . . . . Swarmer 18 | . . 3 4 . . . . . 11 Grunt 37 | . 8 . 16 . . 3 . . 10 Duelist 2 | . . . 2 . . . . . . Sentry 7 | . . . 4 . . 1 . 1 1 Hunter 1 | . . . . . . 1 . . . Subdweller 4 | . . 4 . . . . . . . Best Kill Streak 21 | 1 2 3 21 . . 3 . 1 6 Combat Bots Only 13 | . 2 3 13 . . 3 . 1 6 Max Kills in Single Turn 3 | 1 2 3 2 . . 1 . 1 2 Gunslinging 1 | . . . 1 . . . . . . Exploded 3 | . . 3 . . . 1 . . 2 Melee 1 | . . . . . . 1 . . 1 Uniques/NPCs Destroyed . | . . . . . . . . . . Combat | -11 -10 -10 -8 -7 -7 -7 -6 -5 -5 -------- Run | Yrd Mat Sub Mat Fac Was Fac Fac Fac Upp Hostile Shots Fired 539 | . 38 38 141 . 3 27 9 4 279 Missed 144 | . 9 11 44 . . 7 3 1 69 Hits 395 | . 29 27 97 . 3 20 6 3 210 Melee 4 | . . . 1 . 3 . . . . Projectile 391 | . 29 27 96 . . 20 6 3 210 AOE 1 | . . . 1 . . . . . . Critical Strikes 17 | . . . 6 . 3 . . . 8 Damage Taken 6669 | . 336 591 1519 . 138 190 23 59 3813 Core 1336 | . 54 81 136 . 37 21 . 17 990 Absorbed by Shields 458 | . . . 20 . . 76 24 12 326 Core Remaining (%) 82 | 100 . 46 75 . . 91 100 . . Volleys Fired 179 | 4 30 24 76 . . 3 . 2 40 Largest 3 | 2 2 2 3 . . 2 . 3 3 Hottest 199 | 100 115 110 94 . . 72 . 166 199 Shots Fired 426 | 8 60 42 226 . . 6 . 6 78 Gun 259 | 8 60 38 117 . . . . 2 34 Cannon 156 | . . . 109 . . . . 4 43 Launcher 11 | . . 4 . . . 6 . . 1 Special . | . . . . . . . . . . Kinetic 251 | . . 5 226 . . . . . 20 Thermal 113 | 8 50 5 . . . . . 4 46 Explosive 11 | . . 4 . . . 6 . . 1 Electromagnetic 51 | . 10 28 . . . . . 2 11 Robot Hit Streak 36 | 2 6 36 14 . . . . 6 10 Robot Miss Streak 6 | 2 2 1 5 . . . . . 6 Penetration Max 1 | . . . 1 . . . . . 1 Secondary Targets 1 | . . . 1 . . . . . . Max Gunslinging Chain 1 | . . . 1 . . . . . . Shots Hit Robots 264 | 4 40 25 129 . . 9 . 5 52 Core Hits 138 | 3 22 13 58 . . 6 . 3 33 Critical Kills 1 | . . . 1 . . . . . . Critical Parts Destroyed 6 | . . . 3 . . 3 . . . Critical Strikes 15 | . 3 . 6 . . 3 . . 3 Burn 3 | . 3 . . . . . . . . Destroy 4 | . . . 4 . . . . . . Blast 2 | . . . 2 . . . . . . Smash 3 | . . . . . . 3 . . . Impale 3 | . . . . . . . . . 3 Melee Attacks 44 | . . 4 2 . . 13 . 1 24 Impact 19 | . . 4 2 . . 13 . . . Slashing . | . . . . . . . . . . Piercing 25 | . . . . . . . . 1 24 Sneak Attacks 2 | . . . . . . 2 . . . Combat Hostiles 1 | . . . . . . 1 . . . Follow-up Attacks . | . . . . . . . . . . Damage Inflicted 6383 | 51 569 526 2870 . . 474 . 124 1769 Guns 3285 | 51 569 343 1644 . . . . 39 639 Cannons 1925 | . . . 1212 . . . . 85 628 Explosions 474 | . . 183 . . . 106 . . 185 Melee 685 | . . . . . . 368 . . 317 Ramming 14 | . . . 14 . . . . . . Kinetic 3306 | . . . 2856 . . . . . 450 Thermal 1354 | 51 429 81 . . . . . 65 728 Explosive 474 | . . 183 . . . 106 . . 185 Electromagnetic 550 | . 140 262 . . . . . 59 89 Impact 368 | . . . . . . 368 . . . Slashing . | . . . . . . . . . . Piercing 317 | . . . . . . . . . 317 Highest Corruption 11 | . . . 1 . 11 11 . . . Average Corruption 5 | . . . 1 . 7 11 . . . Corruption Purged . | . . . . . . . . . . Corruption Blocked . | . . . . . . . . . . Effects 29 | . . . 7 . 4 18 . . . Message Errors 5 | . . . . . . 5 . . . Matter Fused 7 | . . . 1 . 1 5 . . . Heat Flow Errors 7 | . . . 3 . 1 3 . . . Energy Discharges 2 | . . . . . 1 1 . . . Parts Fused 2 | . . . . . 1 1 . . . Data Loss (minor) 4 | . . . 2 . . 2 . . . Data Loss (major) 1 | . . . . . . 1 . . . Misfires 1 | . . . 1 . . . . . . Overload Shots . | . . . . . . . . . . Overflow Damage 238 | . . 17 22 . . 190 . . 9 Projectiles 25 | . . . 22 . . . . . 3 Explosions 17 | . . 17 . . . . . . . Melee 196 | . . . . . . 190 . . 6 Knockbacks 11 | . . . 11 . . . . . . Impact . | . . . . . . . . . . Kinetic 10 | . . . 10 . . . . . . Secondary 1 | . . . 1 . . . . . . Self-Inflicted Damage 104 | . . 69 . . . 35 . . . Shots 3 | . . 2 . . . 1 . . . Rammed 5 | . 1 . 4 . . . . . . Targets Rammed 5 | . 1 . 4 . . . . . . Kicked . | . . . . . . . . . . Crushed . | . . . . . . . . . . Highest Temperature 622 | 78 444 23 171 . 198 267 . 202 622 Average Temperature 116 | 41 153 14 29 . 103 105 . 107 201 Received Heat Transfer 2298 | . 189 90 657 . . 74 9 7 1272 Effects 22 | . 4 . . . . . . . 18 Shutdowns 4 | . 1 . . . . . . . 3 Energy Bleed 3 | . 2 . . . . . . . 1 Interference 5 | . . . . . . . . . 5 Short Circuit 1 | . . . . . . . . . 1 Damage (minor) 3 | . 1 . . . . . . . 2 Damage (major) 4 | . . . . . . . . . 4 Damage (core) 2 | . . . . . . . . . 2 Siege Activations . | . . . . . . . . . . Martial Activations . | . . . . . . . . . . Shielding Activations . | . . . . . . . . . . Robots Disrupted . | . . . . . . . . . . Combat Hostiles . | . . . . . . . . . . Robots Corrupted 4 | . . . . . . 4 . . . Combat Hostiles 3 | . . . . . . 3 . . . Parts Fried 6 | . . 2 . . . 4 . . . Impact Corruptions 8 | . . . . . . 8 . . . Robots Melted . | . . . . . . . . . . Combat Hostiles . | . . . . . . . . . . Parts Melted 3 | . 1 . . . . . . 1 1 Heat Transferred 2812 | 148 1369 185 . . . . . 111 999 Parts Sabotaged . | . . . . . . . . . . Parts Stolen . | . . . . . . . . . . Parts Stripped . | . . . . . . . . . . Power Chain Reactions . | . . . . . . . . . . Alert | -11 -10 -10 -8 -7 -7 -7 -6 -5 -5 ------- Run | Yrd Mat Sub Mat Fac Was Fac Fac Fac Upp Maximum Alert Level 2 | . . . 2 1 . . . . . Low Security (%) 93 | 100 100 . 83 33 100 100 100 100 . Level 1 3 | . . . 6 66 . . . . . Level 2 3 | . . . 10 . . . . . . Level 3 . | . . . . . . . . . . Level 4 . | . . . . . . . . . . Level 5 . | . . . . . . . . . . High Security . | . . . . . . . . . . Max Security . | . . . . . . . . . . Peak Influence 520 | 5 45 . 520 219 66 147 . 32 . Initial 219 | . . . . 219 66 . . . . Average 66 | 1 11 . 142 208 26 66 . 4 . Influence Increases 2062 | 10 267 180 864 . . 223 . 48 470 Destroy 0b10 Robot/C 1340 | . 160 60 560 . . 100 . 20 440 Destroy 0b10 Robot/NC 85 | 10 20 . 45 . . 5 . . 5 Destroy Leader 228 | . 46 . 132 . . 30 . 10 10 Allied During Kill 2 | . . . 2 . . . . . . Successful Hack 60 | . 23 . 18 . . 5 . 14 . Disable Machine 30 | . . . . . . 30 . . . Destroy Structure 47 | . 3 . 17 . . 23 . 4 . Partial Spotted 30 | . 15 . . . . 15 . . . Lose Combat Pursuer 240 | . . 120 90 . . 15 . . 15 Influence Decreases 2062 | 10 235 212 382 293 189 223 . 46 472 Entered New Map 404 | . . 16 . 263 123 . . . 2 Time Decay 1300 | 10 225 150 322 30 46 223 . 46 248 Lost Part 272 | . 10 . 40 . . . . . 222 Lost Ally 86 | . . 46 20 . 20 . . . . Squads Dispatched 13 | . 4 . 5 . . 4 . . . Investigation 2 | . 1 . 1 . . . . . . Extermination 1 | . . . . . . 1 . . . Reinforcement 10 | . 3 . 4 . . 3 . . . Assault . | . . . . . . . . . . Garrison . | . . . . . . . . . . Intercept . | . . . . . . . . . . Searches Triggered . | . . . . . . . . . . Construction Impeded 1 | . . . 1 . . . . . . Haulers Reinforced . | . . . . . . . . . . Active Scanning Responses . | . . . . . . . . . . Cargo Convoy Interrupts . | . . . . . . . . . . Stealth | -11 -10 -10 -8 -7 -7 -7 -6 -5 -5 --------- Run | Yrd Mat Sub Mat Fac Was Fac Fac Fac Upp Distress Signals 8 | . . . 6 . . 2 . . . Communications Jammed . | . . . . . . . . . . Distress Signals . | . . . . . . . . . . Times Spotted 114 | . 14 12 48 . 6 6 1 1 26 Peak Tracking Total 8 | . 3 4 8 . 6 3 1 1 7 Tactical Retreats 10 | . . 3 5 . . 1 . . 1 Traps | -11 -10 -10 -8 -7 -7 -7 -6 -5 -5 ------- Run | Yrd Mat Sub Mat Fac Was Fac Fac Fac Upp Traps Triggered 11 | . 2 2 4 1 . 2 . . . Indirectly . | . . . . . . . . . . Trap Hack Attempts . | . . . . . . . . . . Triggered . | . . . . . . . . . . Disarmed . | . . . . . . . . . . Reprogrammed . | . . . . . . . . . . Reused . | . . . . . . . . . . Traps Extracted . | . . . . . . . . . . Installed . | . . . . . . . . . . Triggered . | . . . . . . . . . . Machines | -11 -10 -10 -8 -7 -7 -7 -6 -5 -5 ---------- Run | Yrd Mat Sub Mat Fac Was Fac Fac Fac Upp Machines Disabled 3 | . . 1 . . . 2 . . . Max in Single Turn 2 | . . 1 . . . 2 . . . Garrison Access 1 | . . . 1 . . . . . . Machines Repaired . | . . . . . . . . . . Machines Dismantled . | . . . . . . . . . . Machines Sabotaged . | . . . . . . . . . . Overloaded Fab Kills . | . . . . . . . . . . Hacking | -11 -10 -10 -8 -7 -7 -7 -6 -5 -5 --------- Run | Yrd Mat Sub Mat Fac Was Fac Fac Fac Upp Machines Accessed 20 | . 7 4 4 . . 3 . 1 1 Terminals 12 | . 5 . 3 . . 2 . 1 1 Fabricators . | . . . . . . . . . . Repair Stations . | . . . . . . . . . . Recycling Units 2 | . 2 . . . . . . . . Scanalyzers . | . . . . . . . . . . Garrison Access 2 | . . . 1 . . 1 . . . Total Hacks 52 | . 15 16 8 . . 8 . 2 3 Successful 37 | . 8 16 6 . . 3 . 1 3 Failed 15 | . 7 . 2 . . 5 . 1 . Catastrophic 4 | . 2 . . . . 2 . . . Database Lockouts . | . . . . . . . . . . Manual 19 | . 10 . 3 . . 5 . 1 . Terminals 29 | . 10 . 7 . . 7 . 2 3 Fabricators . | . . . . . . . . . . Repair Stations . | . . . . . . . . . . Recycling Units 5 | . 5 . . . . . . . . Scanalyzers . | . . . . . . . . . . Garrison Access 2 | . . . 1 . . 1 . . . Terminal Hacks 26 | . 3 16 3 . . 1 . . 3 Record 16 | . . 13 . . . . . . 3 Prototype ID Bank 1 | . . . 1 . . . . . . Open Door 1 | . . 1 . . . . . . . Alert Level 2 | . 1 . . . . 1 . . . Locate Traps 2 | . 1 . 1 . . . . . . Maintenance Status 1 | . . . 1 . . . . . . Hauler Manifests 1 | . 1 . . . . . . . . Proto ID Catalog 1 | . . 1 . . . . . . . Release Object 1 | . . 1 . . . . . . . Fabricator Hacks . | . . . . . . . . . . Repair Station Hacks . | . . . . . . . . . . Recycling Unit Hacks 1 | . 1 . . . . . . . . Retrieve Components 1 | . 1 . . . . . . . . Scanalyzer . | . . . . . . . . . . Garrison Access Hacks 1 | . . . 1 . . . . . . Seal Access 1 | . . . 1 . . . . . . Unauthorized Hacks 9 | . 4 . 2 . . 2 . 1 . Terminals 8 | . 3 . 2 . . 2 . 1 . Botnet 8 | . 3 . 2 . . 2 . 1 . Fabricators . | . . . . . . . . . . Repair Stations . | . . . . . . . . . . Recycling Units 1 | . 1 . . . . . . . . Mask 1 | . 1 . . . . . . . . Scanalyzers . | . . . . . . . . . . Garrison Access . | . . . . . . . . . . Data Cores Recovered . | . . . . . . . . . . Used . | . . . . . . . . . . Hacking Detections 15 | . 7 . 3 . . 3 . 1 1 Full Trace Events 2 | . . . 1 . . . . . 1 Feedback Events . | . . . . . . . . . . Feedback Blocked . | . . . . . . . . . . Robot Schematics Acquired . | . . . . . . . . . . Robots Built . | . . . . . . . . . . Authchips . | . . . . . . . . . . Time . | . . . . . . . . . . Total Robot Build Rating . | . . . . . . . . . . Part Schematics Acquired . | . . . . . . . . . . Parts Built . | . . . . . . . . . . Authchips . | . . . . . . . . . . Time . | . . . . . . . . . . Total Part Build Rating . | . . . . . . . . . . Parts Repaired . | . . . . . . . . . . Time . | . . . . . . . . . . Parts Recycled . | . . . . . . . . . . Recycled Matter . | . . . . . . . . . . Retrieved Matter . | . . . . . . . . . . Retrieved Components 5 | . 5 . . . . . . . . Parts Scanalyzed . | . . . . . . . . . . Part Schematics Acquired . | . . . . . . . . . . Parts Damaged . | . . . . . . . . . . Bothacking | -11 -10 -10 -8 -7 -7 -7 -6 -5 -5 ------------ Run | Yrd Mat Sub Mat Fac Was Fac Fac Fac Upp Used RIF Installer . | . . . . . . . . . . Robots Hacked . | . . . . . . . . . . Non-combat . | . . . . . . . . . . Combat . | . . . . . . . . . . Robot Hacks Applied . | . . . . . . . . . . Relay Couplers Released . | . . . . . . . . . . Fabnet Peak Effective % . | . . . . . . . . . . Robots Rewired . | . . . . . . . . . . Allies Hacked . | . . . . . . . . . . Hacks Repelled . | . . . . . . . . . . Allies | -11 -10 -10 -8 -7 -7 -7 -6 -5 -5 -------- Run | Yrd Mat Sub Mat Fac Was Fac Fac Fac Upp Total Allies 8 | . . 7 . . 1 . . . . Largest Group 4 | . . 4 2 . 1 . . . . Highest-Rated Group 76 | . . 76 38 . 31 . . . . Highest-Rated Ally 31 | . . 19 19 . 31 . . . . Total Orders . | . . . . . . . . . . Ally Attacks 35 | . . 13 9 . 13 . . . . Total Damage 502 | . . 152 114 . 236 . . . . Kills 4 | . . 2 2 . . . . . . Allies Corrupted . | . . . . . . . . . . Allies Melted . | . . . . . . . . . . Intel | -11 -10 -10 -8 -7 -7 -7 -6 -5 -5 ------- Run | Yrd Mat Sub Mat Fac Was Fac Fac Fac Upp Active Infowar (turns) 3703 | 11 733 132 1025 57 142 518 122 215 748 Optics 31 | . 31 . . . . . . . . Terrain 170 | . . . . 57 113 . . . . Seismic 3629 | 11 702 132 1025 27 142 518 122 215 735 Jamming 961 | . . . . . . . . 213 748 Robot Analysis Total . | . . . . . . . . . . Derelict Logs Recovered 2 | . . . . . . . . . 2 Drone Launches . | . . . . . . . . . . Drone Recoveries . | . . . . . . . . . . Exploration | -11 -10 -10 -8 -7 -7 -7 -6 -5 -5 ------------- Run | Yrd Mat Sub Mat Fac Was Fac Fac Fac Upp Turns Passed 6941 | 92 998 2104 1041 60 142 518 122 215 1649 Spaces Moved 3322 | 48 473 1221 453 32 91 255 67 93 589 Core 55 | 9 . . . . . . . . 46 Treads 2175 | 39 473 1221 440 . . . . . 2 Legs 27 | . . . . . . . . . 27 Wheels 991 | . . . 13 32 91 255 67 93 440 Hover . | . . . . . . . . . . Flight 74 | . . . . . . . . . 74 Fastest Speed 50 | 50 160 160 145 165 135 150 165 180 80 Average Speed 175 | 139 164 160 153 172 157 163 175 188 240 Slowest Speed 735 | 160 240 160 225 180 165 165 180 195 735 Overloaded Moves . | . . . . . . . . . . Propulsion Burnouts . | . . . . . . . . . . Robots Hopped . | . . . . . . . . . . Potential Cave-ins . | . . . . . . . . . . Cave-ins Triggered . | . . . . . . . . . . Exploration Rate (%) 34 | 3 78 74 41 2 74 7 3 3 59 Regions Visited 9 Branch Regions 2 Pre-discovered Areas 2 | . . 2 . . . . . . . Known Exits Taken 3 | . . . . . . 1 1 1 . Unknown Exits Taken 4 | 1 1 1 1 . . . . . . Scrap Searched 8 | . . 6 . . . . . . 2 Spaces Dug 4 | . . . 2 . . 1 . 1 . Terrain Destroyed 79 | . . 15 14 . . 21 . 1 28 Melee 4 | . . . 2 . . 1 . 1 . Projectile 28 | . . . 12 . . . . . 16 AOE 47 | . . 15 . . . 20 . . 12 Terrain Rammed . | . . . . . . . . . . Walls Destroyed . | . . . . . . . . . . Machines Disabled . | . . . . . . . . . . Actions | -11 -10 -10 -8 -7 -7 -7 -6 -5 -5 --------- Run | Yrd Mat Sub Mat Fac Was Fac Fac Fac Upp Total 4005 | 62 630 1318 627 37 90 323 71 128 719 Wait 195 | . 88 28 26 . . 26 2 8 17 Move 3314 | 47 472 1220 452 32 90 254 66 92 589 Hop . | . . . . . . . . . . Pick Up 77 | 4 16 12 19 . . 10 . 10 6 Fast Attach 39 | 7 5 . 8 1 . 7 . 1 10 Attach 41 | . 1 4 10 2 . 7 2 2 13 Detach 9 | . 2 . . 1 . 2 . . 4 Swap 49 | . 7 16 12 1 . . 1 5 7 Drop 52 | . 8 9 18 . . 1 . 7 9 Fire 179 | 4 30 24 76 . . 3 . 2 40 Melee 44 | . . 4 2 . . 13 . 1 24 Ram . | . . . . . . . . . . Kick . | . . . . . . . . . . Crush 5 | . 1 . 4 . . . . . . Escape Stasis . | . . . . . . . . . . Rewire . | . . . . . . . . . . Trap . | . . . . . . . . . . Miscellaneous 1 | . . 1 . . . . . . . Route ------- -11/Scrapyard -10/Materials (discovered 5 exits: [*Mat x2] / [*Min x2] / *Sub) -10/Subcaves (discovered 3 exits: *Mat x2 / [*Rec]) -8/Materials -7/Factory -7/Waste -7/Factory -6/Factory -5/Factory -5/Upper Caves History --------- Turn | Location | Event 5 | -11/Scrapyard | Discovered new exit (range 15) 93 | -11/Scrapyard | Entered Materials 306 | -10/Materials | Build established: Mutant 311 | -10/Materials | Discovered new exit (range 11) 456 | -10/Materials | Discovered new exit (range 9) 656 | -10/Materials | Discovered new exit (range 11) 939 | -10/Materials | Discovered new exit (range 15) 1084 | -10/Materials | Discovered new exit (range 5) 1091 | -10/Materials | Entered Subcaves 1193 | -10/Subcaves | Lost 3 parts (1n2w) 1335 | -10/Subcaves | Released subatomizers from SUBCON Basin 1506 | -10/Subcaves | Visited triangular shrine 1515 | -10/Subcaves | Found Prototype Device 1516 | -10/Subcaves | Identified V3-11A's Pendant 1521 | -10/Subcaves | Befriended Subdweller 1662 | -10/Subcaves | Core integrity fell below 50% 1675 | -10/Subcaves | Discovered new exit (range 12) 1787 | -10/Subcaves | Approached by friendly Subdweller 1876 | -10/Subcaves | Befriended Subdweller 1919 | -10/Subcaves | Learned location of Zion (-6) 1919 | -10/Subcaves | Met a Zionite searching for "candidates" 1961 | -10/Subcaves | Befriended Subdweller 1997 | -10/Subcaves | Discovered new exit (range 12) 2111 | -10/Subcaves | Befriended Subdweller 2189 | -10/Subcaves | Visited Clippyterm 2194 | -10/Subcaves | Learned location of Section 7 (-2) 2389 | -10/Subcaves | Lost 4 allies 2522 | -10/Subcaves | Approached by friendly Subdweller 2566 | -10/Subcaves | Befriended Subdweller 2646 | -10/Subcaves | Shifting Twisted Machinery released Battle Rifle 2647 | -10/Subcaves | A swath of the cavern ceiling suddenly collapsed 2666 | -10/Subcaves | Shifting Twisted Machinery released Scrap Shield 2725 | -10/Subcaves | Shifting Twisted Machinery released Battle Cannon 2851 | -10/Subcaves | Discovered new exit (range 14) 3031 | -10/Subcaves | Visited 4L-MR0's lab 3054 | -10/Subcaves | Found Rainbow Chip 3195 | -10/Subcaves | Entered Materials 3195 | -8/Materials | Accompanied by 2 allies 3195 | -8/Materials | Evolved 4 slots: Propulsion x1, Utility x2, Weapon x1 3504 | -8/Materials | Build established: Derelict-Tank 4139 | -8/Materials | Build established: Tank 4166 | -8/Materials | Destroyed 13 combat bots 4209 | -8/Materials | Discovered new exit (range 15) 4236 | -8/Materials | Entered Factory 4236 | -7/Factory | Evolved 2 slots: Power x1, Propulsion x1 4296 | -7/Factory | Sucked down chute 4296 | -7/Factory | Entered Waste 4297 | -7/Waste | Met a frightened Derelict 4311 | -7/Waste | EMP discharged 4329 | -7/Waste | Spotted C-40 Crusher 4369 | -7/Waste | Spotted C-40 Crusher 4376 | -7/Waste | Spotted C-40 Crusher 4395 | -7/Waste | Spotted C-40 Crusher 4401 | -7/Waste | Spotted C-40 Crusher 4402 | -7/Waste | Crushed by Compactor (1 part destroyed, 2 dropped) 4406 | -7/Waste | Crushed by Compactor (1 part destroyed, 2 dropped) 4409 | -7/Waste | Crushed by Compactor (1 part destroyed, 1 dropped) 4411 | -7/Waste | EMP discharged 4411 | -7/Waste | System corruption reached 10% 4418 | -7/Waste | Discovered new exit (range 16) 4427 | -7/Waste | Spotted C-40 Crusher 4438 | -7/Waste | Entered Factory 4440 | -7/Factory | Lost 5 parts (1p2n1u1w) 4695 | -7/Factory | Build established: Mutant 4902 | -7/Factory | Discovered new exit (range 11) 4920 | -7/Factory | Identified exit to Factory 4956 | -7/Factory | Entered another Factory area 4956 | -6/Factory | Evolved 2 slots: Utility x2 5054 | -6/Factory | Discovered new exit (range 13) 5074 | -6/Factory | Identified exit to Factory 5078 | -6/Factory | Entered another Factory area 5078 | -5/Factory | Evolved 2 slots: Propulsion x1, Utility x1 5287 | -5/Factory | Discovered new exit (range 5) 5291 | -5/Factory | Identified exit to Upper Caves 5293 | -5/Factory | Entered Upper Caves 5668 | -5/Upper Caves | Build established: Gunner 6065 | -5/Upper Caves | Learned Factory non-interactive machine intel 6067 | -5/Upper Caves | Learned Factory emergency access door positions 6082 | -5/Upper Caves | Attracted the attention of an 0b10 base 6085 | -5/Upper Caves | Core integrity fell below 50% 6163 | -5/Upper Caves | Attached Rainbow Chip, gained temporary slots: Power, Propulsion, Utility, Weapon 6182 | -5/Upper Caves | Lost 12 parts (2p5n3u2w) 6331 | -5/Upper Caves | Build established: Mutant 6565 | -5/Upper Caves | Core integrity fell below 20% 6598 | -5/Upper Caves | Lost 6 parts (1p1n2u2w) 6886 | -5/Upper Caves | Spotted B-75 Beast 6942 | -5/Upper Caves | Destroyed by B-75 Beast with Heavy Machine Gun Last Messages --------------- 06841_ Acquired Heat Sink. 06842_ Acquired 10 matter. 06844_ Acquired Hcp. Storage Unit. 06845_ Acquired 6 matter. 06845_ Acquired 4 matter. 06847_ Acquired Transmission Jammer. 06849_ Acquired Wave Gun. 06851_ Acquired Lrn. Proton Cannon. 06853_ Acquired Lrg. Storage Unit. 06903_ Wheel destroyed. 06911_ Tractor Beam destroyed. 06918_ Mic. Nuclear Core destroyed. 06931_ Dropped Hcp. Storage Unit. 06931_ Critical hit (Burn: +37). 06931_ Imp. Titanium Leg destroyed. 06940_ G-50 Soldier destroyed. 06941_ Core Analyzer destroyed. 06941_ Imp. Grenade Launcher destroyed. 06942_ Rainbow Chip destroyed. 06942_ Phase Cannon destroyed. Map ----- +----------------------------------------------------+ | ?????????????????????????????????????????????????? | | ?????????????????????????????????????????????????? | | ???????????????????????????? ??????????????????? | | ??????????????????????????? #?????????????????? | | ??????????????????????????? #????????????????? | | ???????????????????????????? #????????????#### | | ????????????????????????????# #??????????## # | | ????????????????????????????# ####??????# | | ?????????????????????????????# #??????# | | ??????????????#####???????????# #??????# | | ???????????? #???????????# ####### | | ??????????? ????????????# | | ??????????? ???##???????# | | ???????????? ??## ####???# | | ???????????? #??? #???## ##### ##### | | ???????????? #???? ##??## %% % "] | | ????????????? ##????# #??# # " | | ????????????? ####### ##?## # " | | ???# ????????# ## ##?# " | | ??? ??????# ?# ### ; % # "" | | ??# ???## ??# # ;%%## " | | ??# ### #???# #% "" | | ?# #????# ; " | | ??# ###### + | | ???# ## ## # | | ???# ## ### @% ## ####### | | ???# ??? ####! # # | | ?? ?????????# ! ## # " | | ???????????????# *% ]*## ## #"""""" T"" | | ??????????????# g % ?# ## ########++#### | | ?? ????????## g #?# ## | | ? ????# ## ### | | ? ## #### ##?# ######### | | ? BB g #???####??# ???????# | | ????????# ## BB ##?????????# ??????# | | ???????????# ##?????????? ??????## | | ???????????# #??????????? ##???????### | | ??????????# ??????????? ???????????## # | | ?????????# ???????????? ????????????# ## | | ????????# ????????????????????????# ###? | | ????????## ????????????????????????##???? | | ?????????##### ????????????????????????????? | | ?????????????# ????????????????????????????? | | ?????????????# ## #???????????????????????????? | | ?????????????## ??# #???????????????????????????? | | ??????????????##???###???????????????????????????? | | ?????????????????????????????????????????????????? | | ?????????????????????????????????????????????????? | | ?????????????????????????????????????????????????? | | ?????????????????????????????????????????????????? | +----------------------------------------------------+ Best States ------------- Heat Dissipation 41 Energy Generation 30 Energy Capacity 505 Matter Stores 300 Matter Capacity 300 Sight Range 18 Terrain Scan Range 16 Terrain Scan Density 10 Jamming Range 12 Armor Coverage 1250 Weapon Cycling 15 Evasion (%) 55 Core Analysis 6 Recoil Reduction 4 Kinecelleration 40 Item Schematics ----------------- None Robot Schematics ------------------ None Fabricated ------------ Nothing Repaired ---------- Nothing Alien Tech Used ----------------- None Achievements -------------- None Challenges ------------ None Game ------ Seed AntimatterConstructSink Manual? 0 Play Time 01:22:50 Cumulative 13.5 hours Start 2025.05.14 @ 13:26:51 End 2025.05.14 @ 14:56:05 Sessions 1 Manual Loads 0 Difficulty Rogue Special Mode None Game No. 12 Rogue 12 Adventurer 0 Explorer 0 Win Type - Total 0 Types 0/0/0/0/0/0/0/0/0/0 Lore% 21 Gallery% 20 Achievement% 19 Wizard Run 0 Options --------- Layout 1 ASCII 1 Keyboard 1 Movement Vi Keybinds 0 Fullscreen 2 Font 32/SmallcapsGlow Map View 50x35 Zoom Use 0% Tactical HUD 1 Map Filters NONE Filters NONE Steam 1 RUN: 89df53ee-72c0-480f-a69b-3435081992be